[Event "9th RTU Rapid 2019"]
[Site "Riga"]
[Date "2019.08.04"]
[Round "1.21"]
[White "Liepins, Martins"]
[Black "Grinev, Valeriy"]
[Result "0-1"]
[WhiteElo "1889"]
[BlackElo "2287"]
[PlyCount "110"]
[EventDate "2019.08.05"]
[EventType "swiss"]
[EventCountry "LAT"]
[TimeControl "5400+30"]
[WhiteClock "0:04:25"]
[BlackClock "0:00:45"]

1. c4 {[%emt 1:15:22]} g6 {[%emt 1:15:30]} 2. e4 {[%emt 0:00:39]} Bg7 {[%emt 0:00:39]} 3. d4 {[%emt 0:00:33]} c5 {[%emt 0:00:36]} 4. Nf3 {[%emt 0:00:30]} cxd4 {[%emt 0:00:43]} 5. Nxd4 {[%emt 0:00:30]} Nc6 {[%emt 0:00:30]} 6. Nb3 {[%emt 0:01:21]} d6 {[%emt 0:00:50]} 7. Be2 {[%emt 0:00:33]} Be6 {[%emt 0:00:36]} 8. O-O {[%emt 0:01:40]} Rc8 {[%emt 0:01:19]} 9. f4 {[%emt 0:01:05]} Nf6 {[%emt 0:00:59]} 10. Nc3 {[%emt 0:00:35]} O-O {[%emt 0:00:31]} 11. f5 {[%emt 0:00:51]} Bd7 {[%emt 0:00:38]} 12. g4 {[%emt 0:02:04]} Ne5 {[%emt 0:01:05]} 13. g5 {[%emt 0:03:13]} Ne8 {[%emt 0:00:29]} 14. Nd5 {[%emt 0:00:56]} e6 {[%emt 0:02:09]} 15. f6 {[%emt 0:01:21]} exd5 {[%emt 0:00:28]} 16. fxg7 {[%emt 0:00:43]} Nxg7 {[%emt 0:00:29]} 17. cxd5 {[%emt 0:00:43]} Qb6+ {[%emt 0:02:02]} 18. Qd4 {[%emt 0:00:52]} Qxd4+ {[%emt 0:02:17]} 19. Nxd4 {[%emt 0:00:28]} a6 {[%emt 0:00:27]} 20. Bd2 {[%emt 0:01:03]} Nc4 {[%emt 0:00:54]} 21. Bc3 {[%emt 0:00:40]} Rfe8 {[%emt 0:00:33]} 22. Bxc4 {[%emt 0:01:43]} Rxc4 {[%emt 0:00:28]} 23. Rae1 {[%emt 0:00:31]} b5 {[%emt 0:00:50]} 24. a3 {[%emt 0:01:01]} a5 {[%emt 0:00:27]} 25. Nc6 {[%emt 0:01:55]} Bxc6 {[%emt 0:00:28]} 26. dxc6 {[%emt 0:00:30]} b4 {[%emt 0:00:38]} 27. axb4 {[%emt 0:00:39]} axb4 {[%emt 0:00:27]} 28. Bf6 {[%emt 0:00:42]} Rxc6 {[%emt 0:00:41]} 29. e5 {[%emt 0:00:30]} dxe5 {[%emt 0:01:45]} 30. Rxe5 {[%emt 0:00:26]} Rxe5 {[%emt 0:00:28]} 31. Bxe5 {[%emt 0:00:30]} Rc5 {[%emt 0:00:47]} 32. Bf6 {[%emt 0:00:29]} Nh5 {[%emt 0:00:30]} 33. Ra1 {[%emt 0:00:36]} Nxf6 {[%emt 0:00:30]} 34. gxf6 {[%emt 0:00:27]} Rc8 {[%emt 0:00:33]} 35. Ra6 {[%emt 0:00:44]} g5 {[%emt 0:00:37]} 36. Rb6 {[%emt 0:00:34]} h6 {[%emt 0:00:28]} 37. b3 {[%emt 0:00:46]} Rc1+ {[%emt 0:00:38]} 38. Kf2 {[%emt 0:00:30]} Rc2+ {[%emt 0:00:28]} 39. Kg3 {[%emt 0:00:28]} Rc3+ {[%emt 0:00:27]} 40. Kg4 {[%emt 0:00:31]} Rxb3 {[%emt 0:00:28]} 41. h4 {[%emt 0:00:36]} gxh4 {[%emt 0:00:28]} 42. Kxh4 {[%emt 0:00:26]} Kh7 {[%emt 0:00:28]} 43. Kh5 {[%emt 0:00:32]} Rf3 {[%emt 0:00:55]} 44. Kg4 {[%emt 0:00:42]} Rf1 {[%emt 0:00:30]} 45. Rxb4 {[%emt 0:00:31]} Kg6 {[%emt 0:00:28]} 46. Rb8 {[%emt 0:00:35]} h5+ {[%emt 0:00:28]} 47. Kh4 {[%emt 0:00:29]} Rf4+ {[%emt 0:00:28]} 48. Kg3 {[%emt 0:00:27]} Rg4+ {[%emt 0:00:27]} 49. Kh3 {[%emt 0:00:27]} Kxf6 {[%emt 0:00:28]} 50. Rh8 {[%emt 0:00:06]} Rg5 {[%emt 0:00:36]} 51. Rh6+ {[%emt 0:00:49]} Kf5 {[%emt 0:00:34]} 52. Rh7 {[%emt 0:00:26]} f6 {[%emt 0:00:27]} 53. Rh6 {[%emt 0:00:27]} Ke5 {[%emt 0:00:29]} 54. Kh4 {[%emt 0:00:30]} Rg1 {[%emt 0:00:31]} 55. Rxh5+ {[%emt 0:00:28]} f5 {[%emt 0:00:26]} 0-1

[Event "9th RTU Rapid 2019"]
[Site "Riga"]
[Date "2019.08.04"]
[Round "1.22"]
[White "Dubrovin, Robert"]
[Black "Vissarionovs, Artjoms"]
[Result "1-0"]
[WhiteElo "2282"]
[BlackElo "1653"]
[PlyCount "119"]
[EventDate "2019.08.05"]
[EventType "swiss"]
[EventCountry "LAT"]
[TimeControl "5400+30"]
[WhiteClock "0:00:28"]
[BlackClock "0:00:44"]

1. d4 {[%emt 1:15:21]} Nf6 {[%emt 1:15:23]} 2. c4 {[%emt 0:00:26]} e6 {[%emt 0:00:26]} 3. Nf3 {[%emt 0:00:29]} c5 {[%emt 0:00:26]} 4. d5 {[%emt 0:00:27]} b5 {[%emt 0:00:28]} 5. Bg5 {[%emt 0:00:27]} Bb7 {[%emt 0:00:41]} 6. e4 {[%emt 0:00:33]} Qa5+ {[%emt 0:01:38]} 7. Bd2 {[%emt 0:00:39]} Qb6 {[%emt 0:01:06]} 8. Nc3 {[%emt 0:02:01]} b4 {[%emt 0:02:05]} 9. Na4 {[%emt 0:00:32]} Qc7 {[%emt 0:00:36]} 10. e5 {[%emt 0:01:34]} Nxd5 {[%emt 0:04:05]} 11. cxd5 {[%emt 0:00:30]} Bxd5 {[%emt 0:00:26]} 12. Be3 {[%emt 0:02:25]} Qa5 {[%emt 0:06:34]} 13. b3 {[%emt 0:01:04]} Nc6 {[%emt 0:00:56]} 14. Rc1 {[%emt 0:00:52]} Qc7 {[%emt 0:01:03]} 15. Nxc5 {[%emt 0:01:14]} Bxc5 {[%emt 0:01:13]} 16. Rxc5 {[%emt 0:02:02]} O-O {[%emt 0:00:41]} 17. Bb5 {[%emt 0:01:05]} Qb7 {[%emt 0:00:35]} 18. Bc4 {[%emt 0:02:36]} Be4 {[%emt 0:00:32]} 19. Nd2 {[%emt 0:01:53]} Bg6 {[%emt 0:00:29]} 20. O-O {[%emt 0:00:44]} Ne7 {[%emt 0:00:26]} 21. Qf3 {[%emt 0:00:41]} Qb8 {[%emt 0:00:35]} 22. Rb5 {[%emt 0:00:52]} Qd8 {[%emt 0:00:28]} 23. Bc5 {[%emt 0:00:37]} Re8 {[%emt 0:00:30]} 24. Bxe7 {[%emt 0:00:36]} Qxe7 {[%emt 0:00:28]} 25. Ne4 {[%emt 0:00:31]} Rab8 {[%emt 0:00:32]} 26. Nd6 {[%emt 0:00:34]} Rf8 {[%emt 0:00:28]} 27. Rd1 {[%emt 0:00:48]} Qg5 {[%emt 0:00:33]} 28. Qe3 {[%emt 0:00:40]} Qe7 {[%emt 0:00:30]} 29. Rxb8 {[%emt 0:00:35]} Rxb8 {[%emt 0:00:27]} 30. Qxa7 {[%emt 0:00:26]} Rf8 {[%emt 0:00:28]} 31. Qd4 {[%emt 0:00:30]} Qd8 {[%emt 0:00:31]} 32. h3 {[%emt 0:00:54]} Qa5 {[%emt 0:00:31]} 33. Rd2 {[%emt 0:00:29]} Qa3 {[%emt 0:00:33]} 34. Qb2 {[%emt 0:00:40]} Qa7 {[%emt 0:00:29]} 35. Nb5 {[%emt 0:00:31]} Qb7 {[%emt 0:00:31]} 36. Qd4 {[%emt 0:00:30]} Qa8 {[%emt 0:00:31]} 37. f3 {[%emt 0:00:35]} Qb7 {[%emt 0:00:29]} 38. Qxd7 {[%emt 0:00:30]} Qb6+ {[%emt 0:00:26]} 39. Qd4 {[%emt 0:00:27]} Qb7 {[%emt 0:00:26]} 40. Kh2 {[%emt 0:00:32]} Qe7 {[%emt 0:00:27]} 41. f4 {[%emt 0:00:30]} Qh4 {[%emt 0:00:29]} 42. g3 {[%emt 0:00:28]} Qe7 {[%emt 0:00:31]} 43. Qd6 {[%emt 0:00:29]} Qb7 {[%emt 0:00:26]} 44. Bf1 {[%emt 0:00:48]} Be4 {[%emt 0:00:37]} 45. Qxb4 {[%emt 0:00:53]} Bf3 {[%emt 0:00:29]} 46. Qd6 {[%emt 0:00:29]} Qe4 {[%emt 0:00:30]} 47. Bg2 {[%emt 0:00:35]} Bxg2 {[%emt 0:00:39]} 48. Rxg2 {[%emt 0:00:26]} Qf3 {[%emt 0:00:29]} 49. Nd4 {[%emt 0:00:36]} Qe4 {[%emt 0:00:28]} 50. a4 {[%emt 0:00:28]} h5 {[%emt 0:00:26]} 51. h4 {[%emt 0:00:26]} Qd3 {[%emt 0:00:36]} 52. Nxe6 {[%emt 0:00:40]} Qxd6 {[%emt 0:00:31]} 53. exd6 {[%emt 0:00:26]} fxe6 {[%emt 0:00:26]} 54. a5 {[%emt 0:00:30]} Rb8 {[%emt 0:00:28]} 55. a6 {[%emt 0:00:27]} Ra8 {[%emt 0:00:29]} 56. Ra2 {[%emt 0:00:27]} Kf8 {[%emt 0:00:26]} 57. a7 {[%emt 0:00:26]} Ke8 {[%emt 0:00:26]} 58. Ra6 {[%emt 0:00:28]} Kd7 {[%emt 0:00:26]} 59. Kg2 {[%emt 0:00:27]} g6 {[%emt 0:00:28]} 60. Kf3 {[%emt 0:00:25]} 1-0

[Event "9th RTU Rapid 2019"]
[Site "Riga"]
[Date "2019.08.04"]
[Round "1.23"]
[White "Gukesh D"]
[Black "Mohammad Nubairshah Shaikh"]
[Result "1-0"]
[WhiteElo "1683"]
[BlackElo "2278"]
[PlyCount "53"]
[EventDate "2019.08.05"]
[EventType "swiss"]
[EventCountry "LAT"]
[TimeControl "5400+30"]
[WhiteClock "0:00:18"]
[BlackClock "0:02:23"]

1. c4 {[%emt 1:15:27]} g6 {[%emt 1:15:48]} 2. Nc3 {[%emt 0:00:46]} Bg7 {[%emt 0:00:27]} 3. d4 {[%emt 0:00:32]} d6 {[%emt 0:00:34]} 4. e4 {[%emt 0:00:30]} Nf6 {[%emt 0:00:27]} 5. h3 {[%emt 0:00:38]} O-O {[%emt 0:00:28]} 6. Be3 {[%emt 0:00:27]} e5 {[%emt 0:00:45]} 7. d5 {[%emt 0:00:32]} Na6 {[%emt 0:00:26]} 8. Nf3 {[%emt 0:00:40]} Nc5 {[%emt 0:00:34]} 9. Nd2 {[%emt 0:00:32]} a5 {[%emt 0:00:29]} 10. g4 {[%emt 0:00:42]} c6 {[%emt 0:00:41]} 11. Be2 {[%emt 0:01:01]} Bd7 {[%emt 0:04:59]} 12. g5 {[%emt 0:02:07]} Ne8 {[%emt 0:00:30]} 13. h4 {[%emt 0:01:31]} cxd5 {[%emt 0:05:02]} 14. cxd5 {[%emt 0:01:25]} Rb8 {[%emt 0:00:36]} 15. a4 {[%emt 0:02:34]} f5 {[%emt 0:00:27]} 16. h5 {[%emt 0:01:11]} f4 {[%emt 0:01:29]} 17. Bxc5 {[%emt 0:00:42]} dxc5 {[%emt 0:00:27]} 18. hxg6 {[%emt 0:01:05]} hxg6 {[%emt 0:00:29]} 19. Bg4 {[%emt 0:01:20]} Nd6 {[%emt 0:00:45]} 20. Qf3 {[%emt 0:02:33]} b5 {[%emt 0:02:55]} 21. axb5 {[%emt 0:01:09]} Nxb5 {[%emt 0:00:27]} 22. Nc4 {[%emt 0:01:18]} Nd4 {[%emt 0:00:43]} 23. Qh3 {[%emt 0:00:38]} Bxg4 {[%emt 0:00:28]} 24. Qh7+ {[%emt 0:00:26]} Kf7 {[%emt 0:00:34]} 25. Nxe5+ {[%emt 0:00:26]} Ke7 {[%emt 0:01:46]} 26. Qxg7+ {[%emt 0:00:29]} Kd6 {[%emt 0:00:26]} 27. Nc4# {[%emt 0:00:26]} 1-0

[Event "9th RTU Rapid 2019"]
[Site "Riga"]
[Date "2019.08.04"]
[Round "1.24"]
[White "Evchin, Maxim"]
[Black "Burenkovs, Artjoms"]
[Result "1-0"]
[WhiteElo "2269"]
[BlackElo "1588"]
[PlyCount "132"]
[EventDate "2019.08.05"]
[EventType "swiss"]
[EventCountry "LAT"]
[TimeControl "5400+30"]
[WhiteClock "0:03:17"]
[BlackClock "0:00:41"]

1. e4 {[%emt 1:15:22]} c5 {[%emt 1:15:21]} 2. Nc3 {[%emt 0:00:27]} e6 {[%emt 0:00:26]} 3. g3 {[%emt 0:00:26]} a6 {[%emt 0:00:27]} 4. Bg2 {[%emt 0:00:26]} Qc7 {[%emt 0:00:29]} 5. d3 {[%emt 0:00:37]} Nf6 {[%emt 0:00:29]} 6. f4 {[%emt 0:00:31]} d6 {[%emt 0:00:32]} 7. Nf3 {[%emt 0:00:33]} Nc6 {[%emt 0:00:33]} 8. O-O {[%emt 0:00:30]} Be7 {[%emt 0:00:37]} 9. h3 {[%emt 0:00:28]} b5 {[%emt 0:00:39]} 10. g4 {[%emt 0:00:41]} Bb7 {[%emt 0:00:28]} 11. a4 {[%emt 0:00:31]} b4 {[%emt 0:00:46]} 12. Ne2 {[%emt 0:00:27]} O-O-O {[%emt 0:00:43]} 13. c3 {[%emt 0:00:38]} d5 {[%emt 0:00:49]} 14. e5 {[%emt 0:00:37]} Nd7 {[%emt 0:00:27]} 15. Be3 {[%emt 0:01:45]} Kb8 {[%emt 0:01:17]} 16. cxb4 {[%emt 0:01:58]} Nxb4 {[%emt 0:00:38]} 17. d4 {[%emt 0:01:43]} c4 {[%emt 0:00:40]} 18. b3 {[%emt 0:00:31]} a5 {[%emt 0:00:51]} 19. Nc3 {[%emt 0:01:12]} Ba6 {[%emt 0:01:05]} 20. Nb5 {[%emt 0:00:51]} Bxb5 {[%emt 0:00:50]} 21. axb5 {[%emt 0:00:27]} cxb3 {[%emt 0:00:41]} 22. Qxb3 {[%emt 0:00:34]} Qc2 {[%emt 0:00:30]} 23. Rfb1 {[%emt 0:01:56]} Nb6 {[%emt 0:00:33]} 24. Bf2 {[%emt 0:03:04]} Nc4 {[%emt 0:01:51]} 25. Bf1 {[%emt 0:01:12]} Rc8 {[%emt 0:01:37]} 26. Ne1 {[%emt 0:01:37]} Qxb3 {[%emt 0:01:13]} 27. Rxb3 {[%emt 0:00:26]} Kb7 {[%emt 0:00:37]} 28. Nd3 {[%emt 0:02:34]} Nd2 {[%emt 0:01:32]} 29. Rb2 {[%emt 0:01:00]} Nxd3 {[%emt 0:01:01]} 30. Bxd3 {[%emt 0:00:32]} Bb4 {[%emt 0:00:30]} 31. Rd1 {[%emt 0:00:58]} Nc4 {[%emt 0:01:00]} 32. Rc2 {[%emt 0:00:37]} Na3 {[%emt 0:01:01]} 33. Ra2 {[%emt 0:00:34]} Kb6 {[%emt 0:01:02]} 34. Be1 {[%emt 0:00:31]} Bxe1 {[%emt 0:00:53]} 35. Rxa3 {[%emt 0:00:40]} Bb4 {[%emt 0:00:27]} 36. Ra2 {[%emt 0:00:34]} g6 {[%emt 0:00:58]} 37. Kf2 {[%emt 0:00:28]} Rc3 {[%emt 0:00:31]} 38. Ke3 {[%emt 0:00:36]} Rhc8 {[%emt 0:00:46]} 39. Rf1 {[%emt 0:00:38]} Rc1 {[%emt 0:00:32]} 40. Rxc1 {[%emt 0:00:39]} Rxc1 {[%emt 0:00:27]} 41. f5 {[%emt 0:00:27]} Re1+ {[%emt 0:00:43]} 42. Kf2 {[%emt 0:00:28]} Rh1 {[%emt 0:01:07]} 43. Bf1 {[%emt 0:00:29]} Bc3 {[%emt 0:00:41]} 44. Kg2 {[%emt 0:00:28]} Rxf1 {[%emt 0:00:27]} 45. Kxf1 {[%emt 0:00:26]} Bxd4 {[%emt 0:00:26]} 46. fxe6 {[%emt 0:00:30]} fxe6 {[%emt 0:00:26]} 47. Kg2 {[%emt 0:00:31]} Kxb5 {[%emt 0:00:31]} 48. Kf3 {[%emt 0:00:27]} Bxe5 {[%emt 0:00:26]} 49. Re2 {[%emt 0:00:26]} Bc3 {[%emt 0:00:32]} 50. Rxe6 {[%emt 0:00:27]} d4 {[%emt 0:00:26]} 51. Ke4 {[%emt 0:00:31]} a4 {[%emt 0:00:29]} 52. Re8 {[%emt 0:00:32]} Kc4 {[%emt 0:00:28]} 53. Rc8+ {[%emt 0:00:29]} Kb3 {[%emt 0:00:27]} 54. Kd3 {[%emt 0:00:40]} Kb2 {[%emt 0:00:37]} 55. Rb8+ {[%emt 0:00:28]} Kc1 {[%emt 0:00:27]} 56. Ra8 {[%emt 0:00:29]} h5 {[%emt 0:00:30]} 57. Rxa4 {[%emt 0:00:31]} hxg4 {[%emt 0:00:36]} 58. hxg4 {[%emt 0:00:26]} Kd1 {[%emt 0:00:29]} 59. Ra6 {[%emt 0:00:30]} g5 {[%emt 0:00:30]} 60. Rg6 {[%emt 0:00:27]} Bd2 {[%emt 0:00:30]} 61. Kxd4 {[%emt 0:00:27]} Ke2 {[%emt 0:00:29]} 62. Ke4 {[%emt 0:00:30]} Bf4 {[%emt 0:00:48]} 63. Kf5 {[%emt 0:00:29]} Ke3 {[%emt 0:00:27]} 64. Rxg5 {[%emt 0:00:28]} Bxg5 {[%emt 0:00:26]} 65. Kxg5 {[%emt 0:00:25]} Ke4 {[%emt 0:00:26]} 66. Kf6 {[%emt 0:00:27]} Kd5 {[%emt 0:00:07]} 1-0

[Event "9th RTU Rapid 2019"]
[Site "Riga"]
[Date "2019.08.04"]
[Round "1.25"]
[White "Ciekurs, Maris"]
[Black "Reizniece-Ozola, Dana"]
[Result "0-1"]
[WhiteElo "1648"]
[BlackElo "2261"]
[PlyCount "36"]
[EventDate "2019.08.05"]
[EventType "swiss"]
[EventCountry "LAT"]
[TimeControl "5400+30"]
[WhiteClock "0:09:55"]
[BlackClock "0:04:53"]

1. e4 {[%emt 1:15:22]} g6 {[%emt 1:15:22]} 2. d4 {[%emt 0:00:26]} Bg7 {[%emt 0:00:26]} 3. f4 {[%emt 0:00:40]} d6 {[%emt 0:00:30]} 4. Nf3 {[%emt 0:00:27]} a6 {[%emt 0:00:27]} 5. Nc3 {[%emt 0:00:29]} b5 {[%emt 0:00:29]} 6. Bd3 {[%emt 0:00:50]} Nd7 {[%emt 0:00:27]} 7. Qe2 {[%emt 0:00:59]} c5 {[%emt 0:00:28]} 8. dxc5 {[%emt 0:01:24]} Nxc5 {[%emt 0:00:27]} 9. O-O {[%emt 0:00:55]} Bb7 {[%emt 0:01:15]} 10. e5 {[%emt 0:01:56]} Nxd3 {[%emt 0:00:35]} 11. cxd3 {[%emt 0:00:52]} Nh6 {[%emt 0:01:10]} 12. f5 {[%emt 0:02:24]} Nxf5 {[%emt 0:01:02]} 13. e6 {[%emt 0:02:38]} f6 {[%emt 0:02:48]} 14. Ng5 {[%emt 0:02:24]} Qb6+ {[%emt 0:00:40]} 15. Kh1 {[%emt 0:00:42]} fxg5 {[%emt 0:01:01]} 16. Rxf5 {[%emt 0:00:33]} gxf5 {[%emt 0:00:31]} 17. Qh5+ {[%emt 0:00:27]} Kd8 {[%emt 0:00:27]} 18. Qf7 {[%emt 0:00:39]} Qf2 {[%emt 0:01:00]} 0-1

[Event "9th RTU Rapid 2019"]
[Site "Riga"]
[Date "2019.08.04"]
[Round "1.26"]
[White "Kretainis, Kristaps"]
[Black "Ivanovskis, Sergejs"]
[Result "1-0"]
[WhiteElo "2252"]
[BlackElo "1734"]
[PlyCount "98"]
[EventDate "2019.08.05"]
[EventType "swiss"]
[EventCountry "LAT"]
[TimeControl "5400+30"]
[WhiteClock "0:13:04"]
[BlackClock "0:17:06"]

1. Nf3 {[%emt 1:15:23]} d5 {[%emt 1:15:22]} 2. b3 {[%emt 0:00:26]} Nc6 {[%emt 0:00:31]} 3. Bb2 {[%emt 0:00:26]} Nf6 {[%emt 0:00:35]} 4. e3 {[%emt 0:00:26]} Bg4 {[%emt 0:00:31]} 5. Bb5 {[%emt 0:00:26]} e6 {[%emt 0:00:32]} 6. h3 {[%emt 0:00:26]} Bxf3 {[%emt 0:00:39]} 7. Bxc6+ {[%emt 0:00:26]} bxc6 {[%emt 0:00:28]} 8. Qxf3 {[%emt 0:00:26]} Be7 {[%emt 0:00:26]} 9. d3 {[%emt 0:00:28]} O-O {[%emt 0:00:32]} 10. O-O {[%emt 0:00:25]} c5 {[%emt 0:00:39]} 11. Nd2 {[%emt 0:00:29]} c6 {[%emt 0:00:30]} 12. e4 {[%emt 0:00:26]} d4 {[%emt 0:00:54]} 13. Nc4 {[%emt 0:00:26]} a5 {[%emt 0:00:39]} 14. a4 {[%emt 0:00:26]} Qc7 {[%emt 0:00:39]} 15. Bc1 {[%emt 0:00:30]} e5 {[%emt 0:00:35]} 16. Qe2 {[%emt 0:00:40]} Nd7 {[%emt 0:00:33]} 17. f4 {[%emt 0:00:28]} f6 {[%emt 0:00:33]} 18. Qg4 {[%emt 0:00:34]} exf4 {[%emt 0:00:42]} 19. Bxf4 {[%emt 0:00:28]} Ne5 {[%emt 0:01:01]} 20. Bxe5 {[%emt 0:00:26]} fxe5 {[%emt 0:00:28]} 21. Qe6+ {[%emt 0:00:26]} Kh8 {[%emt 0:00:34]} 22. Qxe5 {[%emt 0:00:26]} Qxe5 {[%emt 0:00:41]} 23. Nxe5 {[%emt 0:00:25]} Bg5 {[%emt 0:00:38]} 24. Nxc6 {[%emt 0:00:35]} Be3+ {[%emt 0:00:35]} 25. Kh1 {[%emt 0:00:29]} g6 {[%emt 0:00:32]} 26. Ne5 {[%emt 0:00:27]} Kg7 {[%emt 0:00:39]} 27. Nc4 {[%emt 0:00:25]} Ra6 {[%emt 0:00:36]} 28. Rxf8 {[%emt 0:00:30]} Kxf8 {[%emt 0:00:26]} 29. Rf1+ {[%emt 0:00:26]} Kg7 {[%emt 0:00:27]} 30. Rf3 {[%emt 0:00:28]} h5 {[%emt 0:00:27]} 31. Nxe3 {[%emt 0:00:30]} dxe3 {[%emt 0:00:29]} 32. Rxe3 {[%emt 0:00:25]} Kf6 {[%emt 0:00:27]} 33. e5+ {[%emt 0:00:29]} Ke6 {[%emt 0:00:26]} 34. g3 {[%emt 0:00:27]} g5 {[%emt 0:00:29]} 35. Kg2 {[%emt 0:00:26]} Ra7 {[%emt 0:00:27]} 36. Re4 {[%emt 0:00:35]} Rf7 {[%emt 0:00:32]} 37. Rc4 {[%emt 0:00:27]} Kd5 {[%emt 0:00:29]} 38. e6 {[%emt 0:00:30]} Re7 {[%emt 0:00:31]} 39. Re4 {[%emt 0:00:25]} Rxe6 {[%emt 0:00:31]} 40. Rxe6 {[%emt 0:00:26]} Kxe6 {[%emt 0:00:26]} 41. Kf3 {[%emt 0:00:26]} Ke5 {[%emt 0:00:26]} 42. Ke3 {[%emt 0:00:26]} Kd5 {[%emt 0:00:29]} 43. c3 {[%emt 0:00:26]} Ke5 {[%emt 0:00:27]} 44. d4+ {[%emt 0:00:27]} Kd5 {[%emt 0:00:35]} 45. dxc5 {[%emt 0:00:26]} Kxc5 {[%emt 0:00:26]} 46. Ke4 {[%emt 0:00:25]} Kd6 {[%emt 0:00:28]} 47. Kf5 {[%emt 0:00:26]} Kd5 {[%emt 0:00:26]} 48. Kxg5 {[%emt 0:00:27]} Ke4 {[%emt 0:00:26]} 49. b4 {[%emt 0:00:27]} Kd5 {[%emt 0:00:32]} 1-0

[Event "9th RTU Rapid 2019"]
[Site "Riga"]
[Date "2019.08.04"]
[Round "1.27"]
[White "Dhyana Patel"]
[Black "Afanasiev, Vadim"]
[Result "1-0"]
[WhiteElo "1900"]
[BlackElo "2241"]
[PlyCount "113"]
[EventDate "2019.08.05"]
[EventType "swiss"]
[EventCountry "LAT"]
[TimeControl "5400+30"]
[BlackClock "0:15:08"]

1. e4 {[%emt 1:15:22]} e5 {[%emt 0:00:06]} 2. Nf3 {[%emt 0:00:02]} Nc6 {[%emt 0:00:02]} 3. Bb5 {[%emt 0:00:02]} a6 {[%emt 0:00:10]} 4. Bxc6 {[%emt 0:00:02]} dxc6 {[%emt 0:00:02]} 5. O-O {[%emt 0:00:02]} Qd6 {[%emt 0:00:02]} 6. Na3 {[%emt 0:00:02]} b5 {[%emt 0:00:31]} 7. Qe2 {[%emt 0:00:13]} Ne7 {[%emt 0:00:34]} 8. c3 {[%emt 0:00:08]} c5 {[%emt 0:00:11]} 9. Rd1 {[%emt 0:00:11]} Nc6 {[%emt 0:00:29]} 10. Nc2 {[%emt 0:00:05]} Bg4 {[%emt 0:00:45]} 11. h3 {[%emt 0:00:07]} Bh5 {[%emt 0:01:13]} 12. d4 {[%emt 0:00:33]} Rd8 {[%emt 0:03:24]} 13. Bg5 {[%emt 0:00:34]} Bxf3 {[%emt 0:00:56]} 14. Qxf3 {[%emt 0:00:11]} Be7 {[%emt 0:00:43]} 15. Be3 {[%emt 0:00:45]} cxd4 {[%emt 0:00:36]} 16. cxd4 {[%emt 0:00:03]} O-O {[%emt 0:00:45]} 17. d5 {[%emt 0:00:30]} Na5 {[%emt 0:01:02]} 18. Rac1 {[%emt 0:00:38]} g6 {[%emt 0:02:46]} 19. b3 {[%emt 0:00:29]} f5 {[%emt 0:00:44]} 20. Bd2 {[%emt 0:00:29]} Nb7 {[%emt 0:00:15]} 21. Nb4 {[%emt 0:00:22]} fxe4 {[%emt 0:00:39]} 22. Qxe4 {[%emt 0:00:01]} Nc5 {[%emt 0:00:02]} 23. Qe2 {[%emt 0:00:51]} Rde8 {[%emt 0:00:24]} 24. Nc6 {[%emt 0:00:34]} Nd7 {[%emt 0:00:35]} 25. Bb4 {[%emt 0:00:19]} Qf6 {[%emt 0:00:05]} 26. Nxe7+ {[%emt 0:00:02]} Rxe7 {[%emt 0:00:02]} 27. Bxe7 {[%emt 0:00:02]} Qxe7 28. Rxc7 {[%emt 0:00:09]} Rf7 {[%emt 0:00:02]} 29. d6 {[%emt 0:00:17]} Qf6 {[%emt 0:00:02]} 30. f3 {[%emt 0:00:29]} Kg7 {[%emt 0:00:11]} 31. Qe4 {[%emt 0:00:17]} Qg5 {[%emt 0:00:10]} 32. Re1 {[%emt 0:00:10]} Qd2 {[%emt 0:00:04]} 33. Rc6 {[%emt 0:00:47]} Qxa2 {[%emt 0:00:13]} 34. Qd5 {[%emt 0:00:29]} Qb2 {[%emt 0:00:06]} 35. Rc7 {[%emt 0:00:07]} Kf6 {[%emt 0:00:05]} 36. f4 {[%emt 0:00:20]} Qd4+ {[%emt 0:00:03]} 37. Qxd4 {[%emt 0:00:06]} exd4 38. Re4 {[%emt 0:00:11]} d3 {[%emt 0:00:02]} 39. Rd4 {[%emt 0:00:06]} Ke6 {[%emt 0:00:02]} 40. g3 {[%emt 0:00:06]} g5 {[%emt 0:00:12]} 41. Kf2 {[%emt 0:00:16]} gxf4 {[%emt 0:00:03]} 42. gxf4 {[%emt 0:00:04]} Rf5 {[%emt 0:00:07]} 43. Ke3 {[%emt 0:00:10]} a5 {[%emt 0:00:15]} 44. Rxd3 {[%emt 0:00:19]} Rh5 {[%emt 0:00:01]} 45. Kf2 {[%emt 0:00:12]} a4 {[%emt 0:00:05]} 46. bxa4 {[%emt 0:00:07]} bxa4 47. Kg3 {[%emt 0:00:52]} Ra5 {[%emt 0:00:02]} 48. Rcc3 {[%emt 0:00:19]} Ra8 {[%emt 0:00:10]} 49. Ra3 {[%emt 0:00:17]} Nf6 {[%emt 0:00:15]} 50. Rd4 {[%emt 0:00:13]} Nd5 {[%emt 0:00:08]} 51. d7 {[%emt 0:00:36]} Rd8 {[%emt 0:00:01]} 52. Raxa4 {[%emt 0:00:26]} Rxd7 {[%emt 0:00:03]} 53. Ra6+ {[%emt 0:00:16]} Ke7 {[%emt 0:00:05]} 54. Ra5 {[%emt 0:00:07]} Ke6 {[%emt 0:00:01]} 55. Kf3 {[%emt 0:00:31]} h5 {[%emt 0:00:06]} 56. Ra6+ {[%emt 0:00:36]} Kf5 {[%emt 0:00:12]} 57. Rh6 {[%emt 0:00:12]} 1-0

[Event "9th RTU Rapid 2019"]
[Site "Riga"]
[Date "2019.08.04"]
[Round "1.28"]
[White "Wedda, Dries"]
[Black "Vernuks, Vjaceslavs"]
[Result "1-0"]
[WhiteElo "2234"]
[BlackElo "1724"]
[PlyCount "41"]
[EventDate "2019.08.05"]
[EventType "swiss"]
[EventCountry "LAT"]
[TimeControl "5400+30"]
[WhiteClock "0:09:22"]
[BlackClock "0:11:56"]

1. d4 {[%emt 1:15:22]} Nf6 {[%emt 1:15:23]} 2. c4 {[%emt 0:00:26]} e6 {[%emt 0:00:27]} 3. Nf3 {[%emt 0:00:26]} d5 {[%emt 0:00:37]} 4. g3 {[%emt 0:00:26]} c6 {[%emt 0:00:30]} 5. Bg2 {[%emt 0:00:26]} g6 {[%emt 0:00:27]} 6. O-O {[%emt 0:01:09]} Bg7 {[%emt 0:00:28]} 7. b3 {[%emt 0:01:23]} O-O {[%emt 0:00:38]} 8. Ba3 {[%emt 0:00:26]} Re8 {[%emt 0:00:28]} 9. Nc3 {[%emt 0:00:27]} Qc7 {[%emt 0:01:34]} 10. Qc2 {[%emt 0:00:41]} a5 {[%emt 0:01:16]} 11. e4 {[%emt 0:00:37]} dxe4 {[%emt 0:00:43]} 12. Nxe4 {[%emt 0:00:32]} Nxe4 {[%emt 0:00:44]} 13. Qxe4 {[%emt 0:00:26]} Nd7 {[%emt 0:00:40]} 14. Bb2 {[%emt 0:00:56]} b6 {[%emt 0:01:00]} 15. Ne5 {[%emt 0:00:37]} Nxe5 {[%emt 0:01:25]} 16. dxe5 {[%emt 0:00:29]} Bb7 {[%emt 0:00:30]} 17. Rad1 {[%emt 0:00:47]} Rad8 {[%emt 0:00:59]} 18. c5 {[%emt 0:01:26]} b5 {[%emt 0:00:57]} 19. Rd6 {[%emt 0:00:34]} Bf8 {[%emt 0:00:37]} 20. Rfd1 {[%emt 0:00:30]} Bxd6 {[%emt 0:01:15]} 21. exd6 {[%emt 0:00:28]} 1-0